bitfinex/quotes_ETHUSD_20251218
["timestamp","ask_amount","ask_price","bid_price","bid_amount"]
[1766080459807,0.585,2848.3,2847.2,7.551]
[1766080460007,0.585,2848.3,2847.3,0.35]
[1766080460187,0.95143873,2848.2,2846.8,0.46438023]
[1766080460384,8.28553385,2848.1,2847.0,7.83927588]
[1766080460583,8.28553385,2848.1,2847.0,3.86242639]
[1766080460785,8.28553385,2848.1,2846.6,0.35]
[1766080460786,7.7808,2847.7,2846.6,0.35]
[1766080461004,8.3658,2847.6,2846.6,0.35]
[1766080461183,8.30392869,2847.5,2846.6,0.35]
[1766080461382,0.0815545,2847.4,2846.6,0.35]
[1766080461586,8.30392869,2847.5,2846.6,0.35]
[1766080461816,7.7808,2847.0,2846.0,0.585]
[1766080462020,8.3658,2847.0,2845.9,3.86372219]
[1766080462236,8.87053385,2847.0,2845.8,0.585]
[1766080462399,7.7808,2847.5,2846.3,0.35]
[1766080462749,0.46438023,2847.4,2846.5,0.35]
[1766080463085,0.46438023,2847.4,2846.0,0.35]
[1766080463086,7.7808,2847.2,2846.0,0.35]
[1766080463287,7.7808,2847.2,2846.1,0.35]
[1766080463515,4.56141676,2847.4,2846.3,0.35]
[1766080463714,0.45614168,2847.3,2846.3,0.35]
[1766080463894,0.405504,2847.2,2846.3,3.86331347]
[1766080464082,0.585,2847.4,2846.6,0.35]
[1766080464282,0.405504,2847.2,2846.1,0.81438023]
[1766080464495,1.04938023,2847.4,2846.2,0.35]
[1766080464693,0.46438023,2847.3,2846.2,0.35]
[1766080464893,0.46438023,2847.3,2846.1,1.04938023]
[1766080464894,0.46438023,2847.3,2846.4,0.35]
[1766080465096,3.976543,2847.3,2846.4,0.35]
[1766080465341,0.46438023,2847.3,2846.4,0.35]
[1766080465489,3.97649608,2847.3,2846.4,0.35]
[1766080465831,0.46438023,2847.3,2846.4,0.35]
[1766080466207,0.405504,2847.2,2846.4,0.35]
[1766080466526,8.186304,2847.2,2846.3,0.584]
[1766080466934,8.186304,2847.2,2846.1,4.32795228]
[1766080467148,8.186304,2847.2,2846.2,0.35]
[1766080467500,0.405504,2847.2,2846.2,0.35]
[1766080467811,0.405504,2847.2,2846.3,0.35]
[1766080468011,7.7808,2847.1,2846.3,0.35]
[1766080468899,7.7808,2847.1,2846.1,0.584]
[1766080469105,8.186304,2847.0,2845.9,0.81438023]
[1766080469401,0.405504,2847.0,2846.1,0.35]
[1766080469601,0.405504,2847.0,2846.2,0.35]
[1766080470402,8.186304,2847.0,2846.2,0.35]
[1766080470598,8.186304,2847.0,2845.8,0.81438023]
[1766080470816,0.584,2847.1,2845.8,0.81438023]
[1766080470817,8.3638,2846.9,2845.8,0.81438023]
[1766080471103,7.7808,2846.7,2845.8,0.35]
[1766080471549,7.7808,2846.7,2845.9,0.35]
[1766080472244,0.583,2846.9,2845.9,0.35]
[1766080472443,0.583,2846.9,2846.0,0.35]
[1766080472839,8.3638,2846.9,2846.0,0.35]
[1766080473163,7.7808,2846.7,2845.7,4.32843515]
[1766080473450,7.7808,2846.6,2845.6,0.46438023]
[1766080473613,7.7808,2846.6,2845.7,0.35]
[1766080474011,7.7808,2846.6,2844.7,0.35]
[1766080474012,7.7808,2845.9,2844.7,0.35]
[1766080474204,7.7808,2845.7,2844.7,0.35]
[1766080474718,7.7808,2845.7,2845.0,0.002]
[1766080474918,0.583,2845.8,2845.0,0.352]
[1766080475231,0.405504,2845.7,2845.0,0.002]
[1766080475433,0.405504,2845.5,2844.6,0.35]
[1766080475638,0.405504,2845.5,2844.3,0.933]
[1766080475639,8.186304,2845.5,2844.3,0.933]
[1766080475835,8.186304,2845.5,2844.4,0.35]
[1766080475836,0.405504,2845.3,2844.4,0.35]
[1766080476136,8.3638,2845.4,2844.4,0.35]
[1766080476631,8.186304,2845.3,2844.4,0.35]
[1766080477132,0.0815545,2845.7,2844.5,3.86551234]
[1766080477133,0.405504,2845.6,2844.5,3.86551234]
[1766080477332,0.405504,2845.4,2844.5,0.35]
[1766080477533,8.186304,2845.4,2844.5,3.86554767]
[1766080477770,8.186304,2845.4,2844.2,0.46438023]
[1766080478031,7.7808,2845.2,2844.4,0.35]
[1766080478615,0.582,2845.3,2844.4,0.35]
[1766080478810,8.186304,2845.2,2844.2,3.51586023]
[1766080479321,0.54593473,2845.5,2844.3,0.35]
[1766080479506,0.987504,2845.4,2844.5,0.35]
[1766080479907,0.46438023,2845.6,2844.6,7.551]
[1766080480141,0.46438023,2845.6,2844.7,0.35]
[1766080480808,0.405504,2845.3,2844.0,0.35]
[1766080481018,7.7808,2844.8,2843.9,0.002]
[1766080481344,7.7808,2844.8,2843.9,3.51827702]
[1766080481550,0.46438023,2845.0,2844.1,0.35]
[1766080482159,8.24518023,2845.0,2844.1,0.35]
[1766080483540,7.1248,2844.9,2844.1,0.35]
[1766080483943,7.1248,2844.9,2843.9,0.583]
[1766080484142,4.06088205,2845.0,2843.9,0.002]
[1766080484143,7.1248,2844.7,2843.9,0.002]
[1766080485644,7.1248,2844.7,2843.9,0.3509]
[1766080486254,7.1248,2844.7,2843.9,0.002]
[1766080486826,7.1248,2844.5,2843.5,0.3489]
[1766080487022,0.581,2844.4,2843.5,0.3489]
[1766080487224,0.0815545,2844.0,2842.8,0.3489]
[1766080487456,0.581,2844.0,2843.2,0.3489]
[1766080487624,7.1248,2843.9,2842.9,7.4991]
[1766080487825,7.530304,2843.8,2842.8,0.3489]
[1766080488125,7.1248,2843.6,2842.4,4.09913886]
[1766080488349,7.7058,2843.6,2842.5,0.46438023]
[1766080488549,7.1248,2843.4,2842.4,0.581]
[1766080488750,7.1248,2843.2,2842.4,0.581]
[1766080488934,7.7058,2843.2,2842.4,0.581]
[1766080489452,7.530304,2843.1,2841.6,0.002]
[1766080489755,7.530304,2843.1,2842.0,0.581]
[1766080489957,0.46438023,2843.6,2842.2,0.3489]
[1766080490258,0.46438023,2843.6,2842.0,0.581]
[1766080490259,0.46438023,2843.4,2842.5,0.3489]
[1766080490428,7.1248,2843.4,2842.5,0.3489]
[1766080491437,7.7058,2843.4,2842.6,0.3489]
[1766080492032,7.7058,2843.4,2842.1,0.9299]
[1766080492033,7.1248,2843.2,2842.1,0.9299]
[1766080492233,0.46438023,2843.1,2842.2,0.3489]
[1766080492432,0.581,2843.4,2842.6,0.3489]
[1766080492656,7.1248,2843.3,2842.2,3.51839841]
[1766080492825,7.1248,2843.3,2842.3,0.3489]
[1766080493155,4.09794863,2843.4,2842.3,0.3489]
[1766080493156,0.581,2843.4,2842.3,0.3489]
[1766080493328,0.581,2843.3,2842.6,3.8667568]
[1766080493653,7.1248,2843.2,2842.2,0.3489]
[1766080493857,7.1248,2843.2,2842.4,3.51813789]
[1766080494057,0.581,2843.3,2842.6,3.86678925]
[1766080494239,1.04538023,2843.6,2842.7,0.3489]
[1766080494437,8.7133618,2843.6,2842.4,0.3489]
[1766080494847,8.7133618,2843.6,2842.4,3.86704999]
[1766080495065,8.7133618,2843.6,2842.5,0.3489]
[1766080495237,8.7133618,2843.6,2842.2,8.0801]
[1766080495238,8.17018023,2843.6,2842.7,0.3489]
[1766080495426,7.530304,2843.5,2842.7,0.3489]
[1766080495754,7.1248,2843.4,2842.4,3.51808354]
[1766080495953,0.405504,2843.3,2842.3,3.86910417]
[1766080496129,0.58,2843.2,2842.3,0.3509]
[1766080496533,0.58,2843.2,2842.5,0.3489]
[1766080496940,7.1248,2843.0,2842.3,0.002]
[1766080497467,0.58,2843.2,2842.5,7.03603254]
[1766080497668,0.58,2843.2,2842.6,0.3489]
[1766080498044,0.58,2843.5,2842.6,7.4991]
[1766080498365,0.58,2843.8,2843.0,0.3489]
[1766080498564,0.58,2843.8,2843.1,0.3489]
[1766080499147,7.7048,2843.8,2842.9,0.3489]
[1766080499347,7.530304,2843.6,2842.5,4.44692181]
[1766080499556,7.530304,2843.6,2842.6,0.3489]
[1766080500169,8.110304,2843.6,2842.6,0.3489]
[1766080500471,8.110304,2843.6,2842.3,7.5011]
[1766080500472,7.1248,2843.5,2842.3,7.5011]
[1766080500672,6.536,2843.1,2842.3,0.002]
[1766080500876,6.536,2842.9,2842.3,0.002]
[1766080501039,6.536,2842.9,2841.7,11.01811211]
[1766080501040,0.0815545,2842.4,2841.4,0.3689]
[1766080501241,7.116,2842.3,2841.5,3.5191483]
[1766080501441,0.58,2842.3,2841.6,0.3709]
[1766080501851,7.116,2842.3,2841.6,0.002]
[1766080502252,6.536,2842.1,2841.1,0.002]
[1766080502475,6.536,2841.9,2841.1,0.002]
[1766080502696,6.536,2841.7,2841.1,0.002]
[1766080502908,0.58,2841.6,2841.1,3.52176347]
[1766080503171,0.58,2841.6,2841.1,0.002]
[1766080503372,0.58,2841.6,2841.2,0.3689]
[1766080503574,0.58,2841.9,2841.3,0.3689]
[1766080503876,6.536,2841.4,2840.4,0.3689]
[1766080504077,6.536,2841.2,2840.4,3.88946241]
[1766080504374,6.536,2841.2,2840.5,3.52049612]
[1766080504576,0.405504,2840.9,2840.0,0.002]
[1766080504779,6.536,2840.7,2840.0,0.002]
[1766080506044,0.405504,2840.2,2839.5,0.002]
[1766080506374,7.115,2840.1,2839.5,0.002]
[1766080507467,7.48110709,2840.1,2839.3,0.002]
[1766080508279,6.536,2839.8,2838.7,0.3689]
[1766080508574,0.579,2839.7,2839.0,0.3689]
[1766080508975,0.85316559,2840.1,2839.2,0.3689]
[1766080509296,0.85316559,2840.1,2839.1,3.52219805]
[1766080509297,0.58,2840.2,2839.5,0.3689]
[1766080509449,0.58,2840.5,2839.8,0.3689]
[1766080510068,7.116,2840.7,2839.8,0.3689]
[1766080510242,0.58,2840.7,2839.9,6.8295]
[1766080510443,0.58,2840.7,2840.0,0.3689]
[1766080511386,0.58,2840.7,2840.1,0.3689]
[1766080511621,0.58,2840.7,2839.9,3.52119286]
[1766080511788,4.10032005,2840.7,2839.4,0.3689]
[1766080511991,7.00038023,2840.6,2839.6,3.52161487]
[1766080512210,6.536,2840.6,2839.5,0.3689]
[1766080512415,6.536,2840.6,2839.5,0.46438023]
[1766080512599,6.536,2840.6,2839.4,4.10083965]
[1766080512600,6.536,2840.6,2839.6,0.3444]
[1766080512908,0.58,2840.7,2839.5,0.46438023]
[1766080512909,0.405504,2840.5,2839.5,0.46438023]
[1766080513084,6.3546,2840.4,2839.4,0.3444]
[1766080513281,0.0815545,2840.9,2839.6,7.0491]
[1766080513606,6.3546,2840.5,2839.4,0.3444]
[1766080513777,6.9336,2840.4,2839.5,0.46438023]
[1766080514211,6.9336,2840.4,2839.5,3.98608612]
[1766080514512,6.3546,2840.8,2839.7,0.46438023]
[1766080514807,0.6605545,2840.9,2840.0,0.3444]
[1766080515026,0.405504,2840.8,2840.0,0.3444]
[1766080515366,6.760104,2840.8,2840.0,0.3444]
[1766080516679,6.760104,2840.8,2839.9,3.52118695]
[1766080516919,6.760104,2840.8,2839.6,0.80878023]
[1766080517124,6.760104,2840.8,2839.9,3.52118422]
[1766080517501,6.760104,2840.8,2839.7,0.3444]
[1766080517724,6.3546,2840.5,2839.0,3.52226165]
[1766080517929,6.3546,2840.1,2839.2,0.9234]
[1766080518101,6.3546,2839.9,2839.2,0.80878023]
[1766080518301,6.3546,2839.9,2839.0,3.5223463]
[1766080518507,6.3546,2839.9,2838.8,0.3444]
[1766080518726,6.3546,2839.9,2839.1,0.3444]
[1766080518950,6.3546,2839.9,2838.8,0.3444]
[1766080519430,6.3546,2839.9,2838.8,0.80878023]
[1766080519627,6.3546,2839.9,2839.0,0.46438023]
[1766080519820,6.3546,2839.7,2838.8,4.33133704]
[1766080520217,6.3546,2839.7,2838.8,7.85395222]
[1766080520431,0.578,2839.6,2838.8,7.85395222]
[1766080520640,6.9326,2839.6,2838.8,4.33133704]
[1766080521147,6.9326,2839.6,2838.8,7.85395222]
[1766080521361,6.9326,2839.6,2838.8,4.33133704]
[1766080521512,3.9264059,2840.2,2838.8,4.33133704]
[1766080521513,6.3546,2840.3,2839.2,0.3444]
[1766080521709,6.3546,2840.1,2839.1,0.3444]
[1766080522009,6.3546,2840.1,2839.2,3.52205554]
[1766080522404,6.3546,2840.1,2839.2,3.52204506]
[1766080522944,6.3546,2840.1,2839.2,7.04416396]
[1766080523136,6.3546,2840.6,2839.4,6.7047]
[1766080523321,6.3546,2840.6,2839.6,0.3444]
[1766080523528,0.578,2840.5,2839.6,0.3444]
[1766080523854,6.9326,2840.5,2839.6,7.38752909]
[1766080524156,6.9326,2840.5,2839.7,0.3444]
[1766080524866,6.3546,2840.3,2839.2,0.578]
[1766080525178,0.578,2840.5,2839.7,0.3444]
[1766080525528,0.578,2840.5,2839.9,0.3444]
[1766080525762,0.578,2840.5,2840.0,3.52112676]
[1766080525962,0.001,2840.1,2840.0,3.52112676]
[1766080526351,0.001,2840.8,2840.0,7.78093601]
[1766080526697,0.001,2840.8,2840.0,0.73868249]
[1766080526698,6.3546,2840.7,2840.0,0.73868249]
[1766080526984,6.3546,2840.7,2839.8,0.3444]
[1766080527252,6.3546,2840.5,2839.6,4.56397736]
[1766080527554,0.578,2840.4,2839.6,4.56397736]
[1766080527755,6.3546,2840.3,2839.5,3.52167814]
[1766080527966,6.3546,2840.3,2839.5,0.46438023]
[1766080528549,6.3546,2840.3,2839.5,0.80878023]
[1766080529648,6.3546,2840.3,2839.6,3.52162276]
[1766080529828,6.3546,2840.3,2839.6,7.04324552]
[1766080531352,6.3546,2840.3,2839.6,3.86602276]
[1766080531558,6.3546,2840.3,2839.6,0.3444]
[1766080531852,6.3546,2840.3,2839.6,3.86593805]
[1766080532063,0.0815545,2840.7,2839.7,0.3444]
[1766080532227,0.001,2840.8,2840.1,0.3444]
[1766080532421,0.578,2840.7,2840.1,0.3444]
[1766080533025,6.3546,2840.6,2839.7,0.46438023]
[1766080533555,6.3546,2840.6,2839.6,8.1263232]
[1766080533556,6.3546,2840.4,2839.6,3.52153805]
[1766080533737,0.578,2840.3,2839.7,0.3444]
[1766080534348,0.001,2840.8,2839.7,0.578]
[1766080534693,6.3546,2841.5,2839.9,0.46438023]
[1766080534984,6.3546,2841.5,2840.1,0.46438023]
[1766080534985,0.578,2841.5,2840.1,0.46438023]
[1766080535190,0.578,2841.5,2840.4,0.46438023]
[1766080535341,6.3546,2841.7,2840.4,0.46438023]
[1766080535543,6.3546,2841.3,2840.0,0.46438023]
[1766080535783,6.3546,2841.1,2840.1,0.46438023]
[1766080535950,6.3546,2840.9,2840.1,0.46438023]
[1766080536353,6.3546,2841.4,2840.4,0.3444]
[1766080536661,6.9326,2841.4,2840.6,0.3444]
[1766080538069,6.9326,2841.4,2840.7,0.3444]
[1766080538375,0.578,2841.4,2840.7,0.3444]
[1766080539752,0.578,2841.4,2840.8,3.52013517]
[1766080539954,0.578,2841.4,2840.8,3.86453517]
[1766080540350,6.3556,2841.5,2840.8,8.09719386]
[1766080540351,0.001,2841.5,2840.8,8.09719386]
[1766080540552,0.001,2842.0,2841.1,0.3444]
[1766080540761,6.3546,2841.9,2841.1,0.3444]
[1766080541577,6.3546,2841.9,2840.8,8.44159386]
[1766080541779,6.3546,2841.9,2840.9,0.3444]
[1766080541967,6.3546,2841.9,2841.0,7.03977472]
[1766080542173,6.3546,2841.9,2841.1,0.3444]
[1766080542684,9.87339912,2841.9,2841.1,0.3444]
[1766080542993,9.87339912,2841.9,2840.7,0.578]
[1766080542994,5.734,2841.6,2840.9,3.52000847]
[1766080543156,6.312,2841.6,2840.9,3.52000847]
[1766080543568,6.312,2841.6,2840.7,0.9494]
[1766080543762,6.312,2841.6,2840.8,0.46438023]
[1766080543966,5.734,2841.4,2840.4,3.52060615]
[1766080544166,5.734,2841.4,2840.4,0.83578023]
[1766080544367,5.734,2841.4,2840.5,3.52043612]
[1766080544883,5.734,2841.4,2840.7,3.52024242]
[1766080545055,5.734,2841.4,2840.6,3.89171515]
[1766080545252,6.09011214,2841.3,2840.6,0.3714]
[1766080545456,0.578,2841.2,2840.6,0.3714]
[1766080545670,0.578,2841.2,2840.4,0.46438023]
[1766080545671,6.139504,2841.1,2840.1,0.3714]
[1766080545871,6.139504,2841.1,2839.9,0.578]
[1766080546075,5.734,2840.9,2840.0,3.5210537]
[1766080546271,0.6717504,2841.0,2840.1,3.98529861]
[1766080546272,6.312,2840.8,2840.1,3.98529861]
[1766080546477,6.312,2840.8,2840.0,4.35688268]
[1766080546777,6.312,2840.8,2840.0,0.3714]
[1766080546978,6.312,2840.8,2839.8,3.52128377]
[1766080547185,6.312,2840.8,2839.5,5.8794]
[1766080547186,5.734,2840.6,2839.7,3.89282113]
[1766080547388,5.734,2840.6,2839.7,0.3714]
[1766080547698,5.734,2840.6,2839.6,0.578]
[1766080548005,0.35611214,2840.7,2839.8,0.3714]
[1766080548160,0.578,2840.6,2839.8,0.3714]
[1766080549584,6.312,2840.6,2839.8,0.3714]
[1766080549988,6.312,2840.6,2839.8,3.89276971]
[1766080551208,5.734,2840.4,2839.6,0.002]
[1766080551384,5.734,2840.4,2839.6,0.3734]
[1766080551709,0.578,2840.3,2839.8,3.52134157]
[1766080552007,0.578,2840.5,2839.8,5.8794]
[1766080552308,0.001,2840.8,2839.9,5.8794]
[1766080552513,0.578,2840.7,2840.0,0.3714]
[1766080554212,0.578,2840.7,2840.0,3.89247281]
[1766080554403,0.578,2840.7,2840.0,0.3714]
[1766080555017,0.578,2840.7,2840.1,0.3714]
[1766080555809,0.001,2840.8,2840.1,0.3714]
[1766080555981,0.001,2840.8,2840.4,0.3714]
[1766080556598,1.04238023,2841.2,2840.5,0.3714]
[1766080556815,6.312,2841.2,2840.2,4.63357181]
[1766080557017,6.312,2841.2,2840.3,3.52072632]
[1766080557189,6.312,2841.2,2840.4,0.3714]
[1766080557517,6.312,2841.2,2840.4,5.8794]
[1766080557829,3.6004964,2841.8,2840.4,5.8794]
[1766080557830,5.734,2841.5,2840.7,0.3714]
[1766080558117,0.0815545,2842.2,2840.9,0.3714]
[1766080558118,0.578,2841.4,2840.9,0.3714]
[1766080558315,6.312,2841.5,2840.9,0.3714]
[1766080558722,5.734,2841.5,2840.7,0.3714]
[1766080558888,5.734,2841.5,2840.5,0.3714]
[1766080559221,5.734,2841.3,2840.5,0.3714]
[1766080559619,6.312,2841.2,2840.5,0.3714]
[1766080559819,0.578,2841.2,2840.6,3.89176388]
[1766080559992,0.578,2841.2,2840.6,0.3714]
[1766080560542,6.312,2841.2,2840.4,0.578]
[1766080560720,6.312,2841.2,2840.3,6.2508]
[1766080560890,6.176904,2841.1,2840.0,0.3537]
[1766080561096,6.2584585,2841.1,2840.0,0.3537]
[1766080561398,6.176904,2841.1,2840.0,3.52112345]
[1766080561603,0.405504,2840.9,2840.1,5.8985]
[1766080561799,0.578,2840.8,2840.2,0.3537]
[1766080562001,5.7714,2840.5,2839.8,0.002]
[1766080562321,6.3494,2840.4,2839.8,0.002]
[1766080562690,6.3494,2840.4,2839.1,0.002]
[1766080562691,0.0815545,2840.3,2839.1,0.002]
[1766080562893,0.405504,2839.9,2839.1,0.002]
[1766080563130,0.405504,2839.9,2838.5,5.9005]
[1766080563131,6.176904,2839.8,2838.7,0.3537]
[1766080563292,0.0815545,2840.3,2838.9,5.8985]
[1766080563293,5.7714,2840.3,2838.9,5.8985]
[1766080563498,0.578,2840.2,2839.4,0.3537]
[1766080564497,6.3494,2840.2,2839.4,0.3537]
[1766080564698,5.7714,2840.1,2839.1,3.52223502]
[1766080564907,5.7714,2840.1,2839.0,0.578]
[1766080564908,5.7714,2840.1,2839.2,3.87579612]
[1766080565109,5.7714,2840.1,2839.3,0.3537]
[1766080565509,5.7714,2839.9,2838.9,0.81808023]
[1766080565810,0.578,2839.8,2839.0,0.3537]
[1766080566010,0.578,2839.8,2839.1,0.3537]
[1766080566420,5.7714,2840.5,2839.3,0.3537]
[1766080566620,0.46438023,2840.1,2839.3,0.3537]
[1766080567135,6.43552842,2840.1,2839.3,0.3537]
[1766080567435,5.7714,2839.9,2838.9,0.3537]
[1766080567801,0.405504,2839.8,2838.9,0.3537]
[1766080568002,5.7714,2839.7,2838.7,0.46438023]
[1766080568206,5.7714,2839.5,2838.6,0.3537]
[1766080568415,6.3494,2839.4,2838.6,0.3537]
[1766080568733,0.405504,2838.9,2838.1,0.002]
[1766080568940,5.7714,2838.8,2838.1,0.002]
[1766080569125,0.405504,2838.7,2838.1,0.002]
[1766080569339,0.405504,2838.7,2837.5,3.5241915]
[1766080569340,5.7714,2838.8,2837.6,3.52406834]
[1766080569500,0.79842654,2838.7,2838.0,0.3557]
[1766080569699,5.7714,2838.6,2838.0,0.002]
[1766080569943,5.7714,2838.6,2837.6,3.524104]
[1766080570246,5.7714,2838.6,2837.7,5.8985]
[1766080570405,5.7714,2838.6,2837.8,0.3537]
[1766080570607,6.176904,2839.1,2838.0,0.3537]
[1766080570907,6.64128423,2838.9,2838.0,0.3537]
[1766080572104,6.64128423,2838.9,2838.0,3.87724718]
[1766080572334,6.64128423,2838.9,2838.1,0.3537]
[1766080572634,6.176904,2838.9,2838.0,3.52356713]
[1766080572804,6.176904,2838.9,2838.1,0.3388]
[1766080572999,0.46438023,2839.2,2838.2,5.2802]
[1766080573206,5.4502,2840.1,2838.9,0.3388]
[1766080573401,5.4502,2840.9,2839.5,0.3388]
[1766080573639,5.4502,2840.9,2839.9,0.3388]
[1766080573823,5.4502,2840.9,2839.5,0.3388]
[1766080574228,5.4502,2840.7,2839.5,3.8605227]
[1766080574427,5.4502,2840.7,2839.5,0.3388]
[1766080574745,5.4502,2840.7,2839.5,3.86054191]
[1766080574940,5.4502,2840.7,2839.4,0.3388]
[1766080575112,0.46438023,2840.6,2838.9,0.3388]
[1766080575435,0.405504,2840.2,2839.1,0.3388]
[1766080575735,0.405504,2840.6,2839.1,0.80318023]
[1766080575935,5.4502,2840.3,2839.1,0.80318023]
[1766080576236,5.4502,2840.3,2839.3,3.86079485]
[1766080576734,5.4502,2840.3,2839.3,0.3388]
[1766080576936,5.4502,2840.3,2839.1,0.46438023]
[1766080576937,5.4502,2840.1,2839.1,0.46438023]
[1766080577136,0.405504,2840.0,2838.6,0.3388]
[1766080577337,0.405504,2840.3,2838.7,0.3388]
[1766080577520,5.4502,2840.2,2838.7,0.80318023]
[1766080577714,5.4502,2840.2,2839.0,0.002]
[1766080577913,5.4502,2839.7,2839.0,0.002]
[1766080578426,5.4502,2839.5,2838.3,0.3388]
[1766080578626,5.4502,2839.5,2838.8,3.86141518]
[1766080579511,5.4502,2839.5,2838.8,0.3388]
[1766080579705,5.4502,2839.5,2838.8,3.86137867]
[1766080580129,5.4502,2839.5,2838.8,0.3388]
[1766080580332,0.405504,2839.9,2838.9,0.03522491]
[1766080580554,5.4502,2839.7,2838.9,0.3388]
[1766080581849,5.4502,2840.1,2839.1,0.3388]
[1766080582158,5.4502,2840.5,2839.4,0.46438023]
[1766080582325,5.4502,2840.5,2839.7,0.3388]
[1766080583500,5.4512,2840.6,2839.5,3.52174678]
[1766080583654,5.4512,2840.6,2839.3,5.2802]
[1766080583655,5.4502,2840.5,2839.3,3.98627561]
[1766080583851,5.855704,2840.4,2839.4,0.3388]
[1766080584276,5.855704,2840.4,2839.5,0.3388]
[1766080584482,5.4502,2840.3,2839.2,0.3388]
[1766080584695,5.4502,2839.9,2839.0,0.46438023]
[1766080585053,0.405504,2839.8,2838.4,0.3388]
[1766080585258,0.405504,2839.6,2838.4,3.86184928]
[1766080585605,5.855704,2840.2,2838.9,0.3388]
[1766080585955,5.855704,2840.2,2839.0,0.002]
[1766080586156,5.855704,2840.0,2839.1,3.86098069]
[1766080586585,5.855704,2840.0,2839.1,0.3388]
[1766080586760,5.855704,2840.0,2839.1,3.86104143]
[1766080586961,6.08220842,2840.0,2839.1,3.86104143]
[1766080587256,5.4502,2840.3,2839.4,0.3388]
[1766080587585,5.4502,2840.9,2839.6,0.3388]
[1766080587793,5.4502,2841.4,2840.1,0.3388]
[1766080588090,0.001,2841.5,2840.5,0.3388]
[1766080588276,0.001,2841.5,2840.6,3.52038301]
[1766080588277,5.4512,2841.5,2840.6,3.52038301]
[1766080588474,5.4512,2841.5,2840.7,0.3388]
[1766080588688,0.001,2841.5,2840.7,0.3388]
[1766080589391,5.4502,2841.4,2840.5,3.52048086]
[1766080589587,0.001,2841.5,2840.2,0.3388]
[1766080589588,0.405504,2841.3,2840.2,0.3388]
[1766080589789,0.405504,2841.0,2839.8,0.3388]
[1766080590087,0.405504,2840.6,2839.5,3.52170999]
[1766080590269,5.4502,2840.5,2839.5,0.46438023]
[1766080590466,5.4502,2840.5,2839.5,7.84667379]
[1766080590677,0.405504,2840.8,2839.6,0.3388]
[1766080590881,5.4502,2840.8,2839.7,0.3388]
[1766080591104,0.44229214,2840.7,2839.7,0.3388]
[1766080591271,5.91458023,2840.8,2839.7,0.3388]
[1766080591880,0.001,2841.5,2839.6,5.2802]
[1766080592080,0.46438023,2841.3,2840.1,5.2802]
[1766080592280,0.001,2841.5,2840.5,0.3388]
[1766080592503,5.4502,2841.4,2840.5,0.3388]
[1766080592804,0.001,2841.5,2840.5,0.3388]
[1766080592805,0.46538023,2841.5,2840.6,0.3388]
[1766080594082,0.001,2841.5,2840.6,0.3388]
[1766080594283,5.4512,2841.5,2840.6,0.3388]
[1766080594701,5.4512,2841.5,2840.6,3.85916933]
[1766080594893,5.4512,2841.5,2840.6,0.3388]
[1766080595099,5.4502,2841.4,2840.6,0.3388]
[1766080595674,5.4502,2841.4,2840.6,3.85917994]
[1766080595987,5.4502,2841.4,2840.6,0.3388]
[1766080596185,5.4502,2841.4,2840.6,3.8591753]
[1766080596581,5.4502,2841.4,2840.6,0.3388]
[1766080596791,5.4502,2841.4,2840.6,3.8591226]
[1766080596992,5.4502,2841.4,2840.6,3.85918048]
[1766080597476,0.001,2841.5,2840.6,3.85918048]
[1766080597477,0.001,2841.5,2840.7,0.3388]
[1766080597889,5.4512,2841.5,2840.7,0.3388]
[1766080598183,5.99642,2841.5,2840.7,0.3388]
[1766080598589,5.99642,2841.5,2840.7,3.85900765]
[1766080598810,5.99642,2841.5,2840.7,0.3388]
[1766080599186,5.99642,2841.5,2840.7,3.85899996]
[1766080599399,5.4512,2841.5,2840.7,3.85899996]
[1766080599592,5.4512,2841.5,2840.7,0.3388]
[1766080599792,0.001,2841.5,2840.8,0.37400135]
[1766080599994,0.001,2841.7,2841.3,0.3388]
[1766080600197,0.001,2841.7,2840.8,0.46438023]
[1766080600198,0.001,2841.7,2840.9,0.3388]
[1766080600529,0.001,2841.7,2840.7,12.32068665]
[1766080600530,5.4502,2841.6,2840.7,0.46438023]
[1766080600679,3.51926799,2841.5,2840.1,0.3388]
[1766080600885,0.405504,2841.1,2840.0,3.52106816]
[1766080601133,5.4502,2841.0,2840.2,3.85955578]
[1766080601294,5.91458023,2841.4,2840.4,0.3388]
[1766080601497,5.4502,2841.3,2840.4,0.3388]
[1766080601684,5.4502,2841.3,2840.2,3.52077853]
[1766080601884,5.4502,2841.3,2840.3,3.85955143]
[1766080602097,0.001,2841.7,2840.3,5.2802]
[1766080602304,0.001,2841.7,2840.9,5.2802]
[1766080602502,0.001,2842.6,2841.5,5.3094]
[1766080602822,5.2345,2842.3,2841.4,3.85925133]
[1766080602985,0.001,2842.6,2841.5,0.3399]
[1766080603180,0.46438023,2842.4,2841.6,0.3399]
[1766080603621,5.2345,2842.4,2841.6,0.3399]
[1766080604232,5.75805,2842.4,2841.6,0.3399]
[1766080605121,5.2345,2842.3,2841.3,0.3399]
[1766080605715,5.2345,2842.3,2841.3,3.85934963]
[1766080605915,5.2345,2842.3,2841.4,0.3399]
[1766080606513,5.2345,2842.3,2841.3,0.3399]
[1766080606809,5.2345,2842.3,2841.4,0.3399]
[1766080607206,5.2345,2842.3,2841.4,3.85927311]
[1766080607409,5.2345,2842.3,2841.5,0.3399]
[1766080607945,0.001,2842.5,2841.6,0.3399]